Cogmind - Beta 15 @@@ ROGUE MODE // 2025.08.23 @ 08:33:10 Player: beans Result: Destroyed by H-61 Shepherd with Heavy Assault Cannon Performance ------------- Evolutions (2) 1000 Regions Visited (3) 600 Robots Destroyed (67) 335 Value Destroyed (1781) 1781 Prototype IDs (1) 20 Alien Tech Used (0) 0 Bonus (48) 48 TOTAL SCORE: 3784 Bonus ------- High Alert Combat Kills 48 Cogmind --------- Core Integrity 0/550 Matter 78/300 Energy 83/100 System Corruption 3% Temperature Cool (68) Movement Core (350) Ox6 Location -8/Materials Parts ------- > --- POWER (1) -------- (None) > --- PROPULSION (2) --- (None) > --- UTILITY (4) ------ Advanced Targeting Computer System Shield > --- WEAPON (4) ------- Gauss Cannon Gauss Cannon Rocket Launcher Scythe > --- INVENTORY (5) ---- Advanced EMP Blaster Peak State ------------ > --- POWER ------------ Light Ion Engine > --- PROPULSION ------- Airjet Airjet > --- UTILITY ---------- Improved Heat Sink Kinecellerator System Shield > --- WEAPON ----------- Flak Cannon Flak Cannon Flak Cannon Flak Cannon > --- INVENTORY -------- Airjet Airjet Transmission Jammer Small Laser Rocket Launcher [Rating: 30] Favorites ----------- Power Ion Engine Engine Ion Engine Power Core Light Nuclear Core Propulsion Airjet Treads Light Treads Hover Unit Airjet Utility Improved Heat Sink Device Improved Heat Sink Processor Advanced Targeting Computer Hackware System Shield Weapon Flak Cannon Energy Gun Particle Gun Ballistic Gun Light Assault Rifle Ballistic Cannon Flak Cannon Launcher Rocket Launcher Slashing Weapon Scythe Build | -11 -10 -9 -8 ------- Run | Yrd Mat Mat Mat Slots Evolved 4 | . . 2 2 Power . | . . . . Propulsion . | . . . . Utility 2 | . . . 2 Weapon 2 | . . 2 . Parts Attached 29 | 5 4 8 12 Power 4 | 1 1 . 2 Engine 3 | 1 . . 2 Core 1 | . 1 . . Reactor . | . . . . Propulsion 6 | 2 . 2 2 Treads 2 | 2 . . . Leg . | . . . . Wheel . | . . . . Hover 4 | . . 2 2 Flight . | . . . . Utility 4 | . 1 . 3 Device 2 | . 1 . 1 Storage . | . . . . Processor 1 | . . . 1 Hackware 1 | . . . 1 Protection . | . . . . Artifact . | . . . . Weapon 15 | 2 2 6 5 Energy Gun 4 | . 2 2 . Energy Cannon . | . . . . Ballistic Gun 2 | 2 . . . Ballistic Cannon 6 | . . 4 2 Launcher 2 | . . . 2 Special Weapon . | . . . . Impact Weapon . | . . . . Slashing Weapon 1 | . . . 1 Piercing Weapon . | . . . . Special Melee Weapon . | . . . . Unidentified Prototypes 1 | . . . 1 Parts Lost 22 | . 2 7 13 Power 4 | . 1 1 2 Propulsion 6 | . 1 1 4 Utility 2 | . . . 2 Weapon 10 | . . 5 5 Highest Loss Streak 8 | . 1 3 8 To Critical Strikes . | . . . . Average Backups 2 | . 1 2 3 Power . | . . . . Propulsion . | . . . 1 Utility . | . . . . Weapon 1 | . 1 2 1 Tool/Special . | . . . . Unused Backups 1 | . . . 1 Power . | . . . . Propulsion . | . . . . Utility 1 | . . . 1 Weapon . | . . . . Tool/Special . | . . . . Average Slot Usage (%) 63 | . 68 55 65 Engine 3 | . 7 . 3 Core 2 | . 3 6 . Treads 4 | . 24 1 . Hover 9 | . . 4 14 Device 8 | . 4 11 8 Processor 1 | . . . 2 Hackware 4 | . . . 8 Energy Gun 5 | . 9 13 . Ballistic Gun 4 | . 18 5 . Ballistic Cannon 17 | . . 12 25 Slashing Weapon 1 | . . . 1 Peak Build Rating 30 | 5 11 21 30 Average Rating 16 | 3 6 11 21 On Entrance 9 | . 5 11 21 Naked Turns . | . . . . Heaviest Build 34 | 7 12 25 34 Greatest Support 40 | 40 40 20 16 Greatest Overweight (x) 9 | . . 8 9 Average Overweight (x) . | . . 1 . Largest Inventory Capacity 5 | 5 5 5 5 Average Capacity 5 | 5 5 5 5 Most Carried 5 | 4 4 4 5 Average Carried 2 | . 1 2 3 Final Capacity 5 | 5 5 5 5 Final Carried 3 | . 3 2 1 Class Distribution -------------------- 50% | Gunner 35% | Mutant 11% | Scavenger-Mutant 3% | Scavenger-Gunner Dominant Class ---------------- Mutant | -10/Materials Gunner | -9/Materials Gunner | -8/Materials Resources | -11 -10 -9 -8 ----------- Run | Yrd Mat Mat Mat Matter Collected 1631 | 250 83 148 1150 Remotely . | . . . . Salvage Created 2050 | . 275 348 1427 Parts 106 | . 13 21 72 Haulers Intercepted 3 | . . . 3 Recyclers Shooed 1 | . . . 1 Parts Field Recycled . | . . . . Retrieved Matter . | . . . . Parts Self-Destructed . | . . . . Prevented . | . . . . Kills | -11 -10 -9 -8 ------- Run | Yrd Mat Mat Mat Combat Hostiles Destroyed 42 | . 8 11 23 Melee 3 | . . . 3 Guns 18 | . 8 9 1 Cannons 16 | . . 2 14 AOE 5 | . . . 5 Classes Destroyed 12 | . 3 2 7 Worker 4 | . 1 . 3 Builder 4 | . . . 4 Tunneler 1 | . . . 1 Hauler 3 | . . . 3 Recycler 8 | . . . 8 Operator 3 | . . 1 2 Watcher 2 | . . . 2 Swarmer 7 | . 3 4 . Cutter 2 | . . . 2 Grunt 26 | . 5 5 16 Duelist 1 | . . . 1 Sentry 6 | . . 2 4 Best Kill Streak 15 | . 5 5 15 Combat Bots Only 9 | . 4 4 9 Max Kills in Single Turn 3 | . 1 2 3 Gunslinging 1 | . . 1 . Exploded 1 | . . . 1 Melee 1 | . . . 1 Uniques/NPCs Destroyed . | . . . . Combat | -11 -10 -9 -8 -------- Run | Yrd Mat Mat Mat Hostile Shots Fired 262 | . 70 52 140 Missed 72 | . 14 10 48 Hits 190 | . 56 42 92 Melee 6 | . . . 6 Projectile 184 | . 56 42 86 AOE 2 | . . . 2 Critical Strikes 5 | . . 1 4 Damage Taken 3045 | . 642 485 1918 Core 923 | . 129 201 593 Absorbed by Shields . | . . . . Core Remaining (%) 65 | 100 48 49 . Volleys Fired 139 | . 36 38 65 Largest 4 | . 2 4 4 Hottest 148 | . 130 148 148 Shots Fired 354 | . 72 75 207 Gun 143 | . 72 69 2 Cannon 200 | . . 6 194 Launcher 11 | . . . 11 Special . | . . . . Kinetic 282 | . 50 38 194 Thermal 61 | . 22 37 2 Explosive 10 | . . . 10 Electromagnetic 1 | . . . 1 Robot Hit Streak 10 | . 8 10 9 Robot Miss Streak 26 | . 3 4 26 Penetration Max . | . . . . Secondary Targets 5 | . 3 2 . Max Gunslinging Chain 1 | . 1 1 . Shots Hit Robots 265 | . 52 49 164 Core Hits 194 | . 19 26 149 Critical Kills . | . . . . Critical Parts Destroyed 1 | . . 1 . Critical Strikes 2 | . . 1 1 Destroy 1 | . . 1 . Blast 1 | . . . 1 Melee Attacks 19 | . . . 19 Impact . | . . . . Slashing 19 | . . . 19 Piercing . | . . . . Sneak Attacks 4 | . . . 4 Combat Hostiles . | . . . . Follow-up Attacks . | . . . . Damage Inflicted 4704 | . 574 572 3558 Guns 1076 | . 574 492 10 Cannons 2306 | . . 80 2226 Explosions 721 | . . . 721 Melee 592 | . . . 592 Ramming 9 | . . . 9 Kinetic 2786 | . 305 255 2226 Thermal 596 | . 269 317 10 Explosive 638 | . . . 638 Electromagnetic 83 | . . . 83 Impact . | . . . . Slashing 592 | . . . 592 Piercing . | . . . . Highest Corruption 3 | . . . 3 Average Corruption 2 | . . . 2 Corruption Purged . | . . . . Corruption Blocked . | . . . . Effects 14 | . . . 14 Message Errors 4 | . . . 4 Matter Fused 2 | . . . 2 Energy Discharges 1 | . . . 1 Data Loss (minor) 4 | . . . 4 Misfires 2 | . . . 2 Weapon Failures 1 | . . . 1 Overload Shots . | . . . . Overflow Damage 110 | . . . 110 Projectiles 15 | . . . 15 Explosions 16 | . . . 16 Melee 79 | . . . 79 Knockbacks 31 | . . . 31 Impact . | . . . . Kinetic 30 | . . . 30 Secondary 1 | . . . 1 Self-Inflicted Damage 158 | . . . 158 Shots 5 | . . . 5 Rammed 2 | . . . 2 Targets Rammed 2 | . . . 2 Kicked . | . . . . Crushed . | . . . . Highest Temperature 236 | . 134 236 223 Average Temperature 53 | . 29 85 51 Received Heat Transfer 1170 | . 288 171 711 Effects 1 | . . 1 . Energy Bleed 1 | . . 1 . Siege Activations . | . . . . Martial Activations . | . . . . Shielding Activations . | . . . . Robots Disrupted . | . . . . Combat Hostiles . | . . . . Robots Corrupted . | . . . . Combat Hostiles . | . . . . Parts Fried . | . . . . Impact Corruptions . | . . . . Robots Melted . | . . . . Combat Hostiles . | . . . . Parts Melted 1 | . . 1 . Heat Transferred 1422 | . 629 768 25 Parts Sabotaged . | . . . . Parts Stolen . | . . . . Parts Stripped . | . . . . Power Chain Reactions 1 | . . . 1 Alert | -11 -10 -9 -8 ------- Run | Yrd Mat Mat Mat Maximum Alert Level 2 | . . . 2 Low Security (%) 55 | 100 100 100 21 Level 1 41 | . . . 74 Level 2 2 | . . . 4 Level 3 . | . . . . Level 4 . | . . . . Level 5 . | . . . . High Security . | . . . . Max Security . | . . . . Peak Influence 533 | . 135 123 533 Initial 48 | . . 48 42 Average 152 | . 47 74 229 Influence Increases 1427 | . 205 265 957 Destroy 0b10 Robot/C 840 | . 160 220 460 Destroy 0b10 Robot/NC 125 | . 5 5 115 Destroy Leader 200 | . 40 40 120 Disable Machine 60 | . . . 60 Destroy Structure 37 | . . . 37 Lose Combat Pursuer 165 | . . . 165 Influence Decreases 900 | . 90 277 533 Entered New Map 128 | . . 67 61 Time Decay 552 | . 70 140 342 Lost Part 220 | . 20 70 130 Squads Dispatched 8 | . 1 . 7 Investigation . | . . . . Extermination . | . . . . Reinforcement 7 | . 1 . 6 Assault . | . . . . Garrison 1 | . . . 1 Intercept . | . . . . Searches Triggered . | . . . . Construction Impeded 1 | . . . 1 Haulers Reinforced . | . . . . Active Scanning Responses . | . . . . Cargo Convoy Interrupts . | . . . . Stealth | -11 -10 -9 -8 --------- Run | Yrd Mat Mat Mat Distress Signals 8 | . . . 8 Communications Jammed . | . . . . Distress Signals . | . . . . Times Spotted 69 | . 11 12 46 Peak Tracking Total 9 | . 5 5 9 Tactical Retreats 5 | . . . 5 Traps | -11 -10 -9 -8 ------- Run | Yrd Mat Mat Mat Traps Triggered 2 | . . . 2 Indirectly 1 | . . . 1 Trap Hack Attempts . | . . . . Triggered . | . . . . Disarmed . | . . . . Reprogrammed . | . . . . Reused . | . . . . Traps Extracted . | . . . . Installed . | . . . . Triggered . | . . . . Machines | -11 -10 -9 -8 ---------- Run | Yrd Mat Mat Mat Machines Disabled 4 | . . . 4 Max in Single Turn 3 | . . . 3 Machines Repaired . | . . . . Machines Dismantled . | . . . . Machines Sabotaged . | . . . . Overloaded Fab Kills . | . . . . Hacking | -11 -10 -9 -8 --------- Run | Yrd Mat Mat Mat Machines Accessed . | . . . . Terminals . | . . . . Fabricators . | . . . . Repair Stations . | . . . . Recycling Units . | . . . . Scanalyzers . | . . . . Garrison Access . | . . . . Total Hacks . | . . . . Successful . | . . . . Failed . | . . . . Catastrophic . | . . . . Database Lockouts . | . . . . Manual . | . . . . Terminals . | . . . . Fabricators . | . . . . Repair Stations . | . . . . Recycling Units . | . . . . Scanalyzers . | . . . . Garrison Access . | . . . . Terminal Hacks . | . . . . Fabricator Hacks . | . . . . Repair Station Hacks . | . . . . Recycling Unit Hacks . | . . . . Scanalyzer . | . . . . Garrison Access Hacks . | . . . . Unauthorized Hacks . | . . . . Terminals . | . . . . Fabricators . | . . . . Repair Stations . | . . . . Recycling Units . | . . . . Scanalyzers . | . . . . Garrison Access . | . . . . Data Cores Recovered . | . . . . Used . | . . . . Hacking Detections . | . . . . Full Trace Events . | . . . . Feedback Events . | . . . . Feedback Blocked . | . . . . Robot Schematics Acquired . | . . . . Robots Built . | . . . . Authchips . | . . . . Time . | . . . . Total Robot Build Rating . | . . . . Part Schematics Acquired . | . . . . Parts Built . | . . . . Authchips . | . . . . Time . | . . . . Total Part Build Rating . | . . . . Parts Repaired . | . . . . Time . | . . . . Parts Recycled . | . . . . Recycled Matter . | . . . . Retrieved Matter . | . . . . Retrieved Components . | . . . . Parts Scanalyzed . | . . . . Part Schematics Acquired . | . . . . Parts Damaged . | . . . . Bothacking | -11 -10 -9 -8 ------------ Run | Yrd Mat Mat Mat Used RIF Installer . | . . . . Robots Hacked . | . . . . Non-combat . | . . . . Combat . | . . . . Robot Hacks Applied . | . . . . Relay Couplers Released . | . . . . Fabnet Peak Effective % . | . . . . Robots Rewired . | . . . . Allies Hacked . | . . . . Hacks Repelled . | . . . . Allies | -11 -10 -9 -8 -------- Run | Yrd Mat Mat Mat Total Allies . | . . . . Largest Group . | . . . . Highest-Rated Group . | . . . . Highest-Rated Ally . | . . . . Total Orders . | . . . . Ally Attacks . | . . . . Total Damage . | . . . . Kills . | . . . . Allies Corrupted . | . . . . Allies Melted . | . . . . Intel | -11 -10 -9 -8 ------- Run | Yrd Mat Mat Mat Active Infowar (turns) . | . . . . Robot Analysis Total . | . . . . Derelict Logs Recovered . | . . . . Drone Launches . | . . . . Drone Recoveries . | . . . . Exploration | -11 -10 -9 -8 ------------- Run | Yrd Mat Mat Mat Turns Passed 1363 | 80 227 291 765 Spaces Moved 707 | 59 74 119 455 Core 253 | 21 . 50 182 Treads 132 | 38 74 20 . Legs . | . . . . Wheels . | . . . . Hover 322 | . . 49 273 Flight . | . . . . Fastest Speed 50 | 50 160 100 50 Average Speed 116 | 120 160 148 100 Slowest Speed 500 | 160 160 450 500 Overloaded Moves . | . . . . Propulsion Burnouts . | . . . . Robots Hopped . | . . . . Potential Cave-ins . | . . . . Cave-ins Triggered . | . . . . Exploration Rate (%) 15 | 4 18 11 30 Regions Visited 3 Branch Regions . Pre-discovered Areas . | . . . . Known Exits Taken . | . . . . Unknown Exits Taken 3 | 1 1 1 . Scrap Searched . | . . . . Spaces Dug . | . . . . Terrain Destroyed 54 | . . . 54 Melee . | . . . . Projectile 5 | . . . 5 AOE 49 | . . . 49 Terrain Rammed . | . . . . Walls Destroyed . | . . . . Machines Disabled . | . . . . Actions | -11 -10 -9 -8 --------- Run | Yrd Mat Mat Mat Total 957 | 68 120 174 595 Wait 27 | . 2 . 25 Move 704 | 58 73 118 455 Hop . | . . . . Pick Up 29 | 5 5 8 11 Fast Attach 2 | . . . 2 Attach 29 | 5 2 9 13 Detach 2 | . . . 2 Swap 3 | . 2 1 . Drop 1 | . . . 1 Fire 139 | . 36 38 65 Melee 19 | . . . 19 Ram 2 | . . . 2 Kick . | . . . . Crush . | . . . . Escape Stasis . | . . . . Rewire . | . . . . Trap . | . . . . Miscellaneous . | . . . . Route ------- -11/Scrapyard -10/Materials -9/Materials -8/Materials History --------- Turn | Location | Event 4 | -11/Scrapyard | Discovered new exit (range 16) 81 | -11/Scrapyard | Entered Materials 270 | -10/Materials | Core integrity fell below 50% 283 | -10/Materials | Discovered new exit (range 12) 308 | -10/Materials | Entered another Materials area 308 | -9/Materials | Evolved 2 slots: Weapon x2 432 | -9/Materials | Lost 3 parts (3w) 497 | -9/Materials | Core integrity fell below 50% 530 | -9/Materials | Lost 3 parts (1p2w) 575 | -9/Materials | Discovered new exit (range 16) 599 | -9/Materials | Entered another Materials area 599 | -8/Materials | Evolved 2 slots: Utility x2 818 | -8/Materials | Build established: Gunner 1144 | -8/Materials | Core integrity fell below 50% 1200 | -8/Materials | Lost 8 parts (1p2n1u4w) 1337 | -8/Materials | Garrison activated, responded to threat 1341 | -8/Materials | Core integrity fell below 20% 1364 | -8/Materials | Destroyed by H-61 Shepherd with Heavy Assault Cannon Last Messages --------------- G-47 Trooper destroyed. The unstable cave ceiling collapses. Aluminum Leg crushed. Slug penetrates Earth. G-47 Trooper destroyed. Destroyed Lgt. Deuterium Engine. The unstable cave ceiling collapses. W-25 Informer sends out distress signal. W-25 Informer destroyed. Terminal disabled. G-47 Trooper destroyed. QCTCHUBHQ 2X&XW,LF&QUSF1JA%N#&BJ,O73